[Event "African Individual Chess-ch Open 2024"]
[Site "Accra"]
[Date "2024.03.17"]
[Round "6.1"]
[White "Amin, Bassem"]
[Black "Bellahcene, Bilel"]
[Result "1-0"]
[ECO "C24"]
[WhiteElo "2670"]
[BlackElo "2522"]
[Annotator "TA"]
[PlyCount "133"]
[EventDate "2024.03.13"]
[EventCountry "GHA"]
[SourceTitle "playchess.com"]
[Source "ChessBase"]
[SourceQuality "1"]
[TimeControl "5400+30"]

{[%evp 11,133,38,55,57,58,27,33,16,33,0,0,0,12,0,0,4,16,6,10,10,27,0,54,48,50,45,50,48,57,56,64,27,26,18,30,19,54,17,20,31,29,25,28,16,20,0,0,0,0,0,0,0,0,0,0,0,0,0,0,0,0,0,0,0,11,1,57,27,81,81,79,77,104,104,111,112,125,118,132,138,148,150,150,70,70,77,153,77,83,84,80,77,77,77,153,78,192,192,742,701,641,618,2888,1825,29947,29945,29950,29952,29954,29955,29960,29962,29965,29966,29966,29967,29971,29972,29973,29974,29973,29974,29971,29971]} 1. e4 {[%emt 0:00:05]} e5 {[%emt 0:14:52]} 2. Bc4 {[%emt 0:02:07]} Nf6 {[%emt 0:00:06][%cal Bg8f6,Bf6d5,Bd5b6][%mdl 32]} 3. d3 {[%emt 0:00:09]} Nc6 {[%emt 0:00:32]} 4. Nf3 {[%emt 0:01:05]} d5 {[%emt 0:00:06]} 5. exd5 {[%emt 0:00:10]} Nxd5 {[%emt 0:00:04]} 6. O-O {[%emt 0:00:21]} Nb6 {[%emt 0:00:04]} 7. Bb5 {[%emt 0:03:56]} Bd6 {[%emt 0:00:36]} 8. Re1 {[%emt 0:01:05]} f6 {[%emt 0:00:05]} 9. d4 {[%emt 0:00:30] White is slightly better.} O-O {[%emt 0:00:07]} 10. Bxc6 {[%emt 0:00:29]} bxc6 {[%emt 0:00:05]} 11. dxe5 {[%emt 0:00:10]} fxe5 {[%emt 0:00:03][%cal Oe5e4]} 12. Ng5 {[%emt 0:10:18]} (12. Nxe5 Bxe5 13. Nd2 (13. Qxd8 $2 Rxd8 14. Nd2 Rd5 $19) 13... Bxh2+ 14. Kh1 Qh4 $19) 12... Bf5 {[%emt 0:03:21]} 13. Nc3 {[%emt 0:01:24][%cal Bb1c3,Bc3e4,Be4g3][%mdl 32]} Bc5 {[%emt 0:25:14][%cal Oc5f2] aiming for ...Bxf2+!} 14. Nce4 {[%emt 0:13:27]} Qxd1 {[%emt 0:08:42]} 15. Rxd1 {[%emt 0:00:07]} Be7 {[%emt 0:00:28] This pair of bishops is nice.} 16. Re1 $1 {[%emt 0:00:28]} Rad8 {[%emt 0:02:56]} (16... h6 $11 17. Nf3 Bd6) 17. Ng3 $1 $14 {[%emt 0:01:35]} Bc8 {[%emt 0:02:04]} 18. N5e4 {[%emt 0:03:41]} Nd5 {[%emt 0:04:25]} 19. a3 {[%emt 0:04:14] Inhibits Nb4.} h6 {[%emt 0:02:46]} 20. b3 {[%emt 0:05:07]} Nf6 {[%emt 0:03:50]} 21. Be3 {[%emt 0:03:11]} Nxe4 {[%emt 0:07:34]} 22. Nxe4 {[%emt 0:00:02]} Bf5 {[%emt 0:00:14]} 23. Bxa7 {[%emt 0:18:39] Black must now prevent Bc5.} Bxa3 {[%emt 0:02:35]} 24. Ng3 {[%emt 0:06:23]} (24. Rxa3 $5 Bxe4 25. c3 $16) 24... Bb4 {[%emt 0:03:43] [#]} 25. Nxf5 $1 {[%emt 0:00:21]} Rxf5 {[%emt 0:00:33]} 26. Red1 {[%emt 0:01:22]} Rff8 {[%emt 0:05:30]} (26... Rxd1+ 27. Rxd1 Rf6 28. g3 $14) 27. Be3 {[%emt 0:01:32]} Bc3 {[%emt 0:00:45]} 28. Rab1 {[%emt 0:04:13]} Rd5 {[%emt 0:02:38]} 29. Kf1 {[%emt 0:03:50]} Rfd8 {[%emt 0:01:00]} 30. Ke2 {[%emt 0:00:08]} Kf7 {[%emt 0:00:16]} 31. Rd3 {[%emt 0:00:23]} Rxd3 {[%emt 0:00:28]} 32. cxd3 $11 {[%emt 0:00:02][%mdl 4096] Endgame. KRB-KRB} Rb8 $1 {[%emt 0:00:27]} 33. Kd1 {[%emt 0:00:29]} Rb5 {[%emt 0:07:59]} 34. Kc2 {[%emt 0:00:29]} Bd4 {[%emt 0:00:24]} 35. Bxd4 {[%emt 0:05:20]} exd4 {[%emt 0:00:01] KR-KR} 36. Re1 {[%emt 0:03:18]} Rc5+ {[%emt 0:01:07]} 37. Kd2 {[%emt 0:00:16]} Rb5 {[%emt 0:02:02]} 38. Re4 {[%emt 0:00:51]} Rf5 {[%emt 0:01:02]} (38... c5 $11) 39. f4 {[%emt 0:01:22]} (39. Rxd4 Rxf2+ 40. Ke1 Rxg2 $15) 39... Rd5 {[%emt 0:00:44]} (39... Rh5 $11 {keeps the balance.}) 40. b4 $16 {[%emt 0:01:07]} g5 {[%emt 0:00:30]} 41. g4 {[%emt 0:00:00]} gxf4 {[%emt 0:00:00]} 42. Rxf4+ {[%emt 0:00:00]} Ke6 {[%emt 0:00:00]} 43. h4 {[%emt 0:00:00]} c5 {[%emt 0:00:00]} 44. bxc5 {[%emt 0:00:00]} Rxc5 {[%emt 0:00:00]} 45. Rxd4 {[%emt 0:00:00] Rc4 would now be deadly.} Ra5 {[%emt 0:00:00]} 46. Ke3 {[%emt 0:00:00]} c5 {[%emt 0:00:00]} 47. Re4+ {[%emt 0:00:00]} (47. Rf4 $1 $16) 47... Kf6 $1 $14 {[%emt 0:00:00]} 48. Rc4 {[%emt 0:00:00]} Ke6 {[%emt 0:00:00]} (48... Kg7 $142) 49. Ke4 {[%emt 0:00:00]} (49. Rf4 $142 $1) 49... Kf6 {[%emt 0:00:46]} 50. Kf4 {[%emt 0:00:00]} Ra3 {[%emt 0:00:45]} 51. Ke3 $1 {[%emt 0:00:00]} (51. Rxc5 Rxd3 52. Rc6+ Kg7 $14) 51... Ra5 {[%emt 0:00:15]} 52. Rf4+ {[%emt 0:00:00]} Ke7 {[%emt 0:03:20]} ({Better is} 52... Kg7) 53. h5 {[%emt 0:11:37]} ({White should play} 53. Rf5 $1) 53... Ra1 {[%emt 0:00:15] [#]} (53... Ra3 $16) 54. Rf5 $1 $18 {[%emt 0:00:06]} Rc1 {[%emt 0:01:23] [#]} (54... Ra5 55. Ke4 Ra4+ 56. Kf3 c4) 55. Kd2 $1 {[%emt 0:00:17]} Rg1 {[%emt 0:00:44]} 56. Rxc5 {[%emt 0:00:02]} Rxg4 {[%emt 0:00:32]} 57. Rc6 {[%emt 0:00:02][%cal Od2c3] And now Kc3! would win.} Rg5 {[%emt 0:00:31]} 58. Rxh6 {[%emt 0:00:06] White mates.} Kf7 {[%emt 0:00:19]} 59. Kc3 {[%emt 0:02:09]} Rf5 {[%emt 0:00:13]} 60. d4 {[%emt 0:00:47][%cal Bd3d4,Bd4d5][%mdl 32]} Kg7 {[%emt 0:00:02]} 61. Re6 {[%emt 0:00:11]} ({Stronger than} 61. Rg6+ Kf7 $11) 61... Rxh5 {[%emt 0:00:06]} 62. Kc4 {[%emt 0:00:09]} Kf7 {[%emt 0:01:49]} 63. d5 {[%emt 0:00:30]} Rh1 {[%emt 0:00:11]} 64. Re2 {[%emt 0:00:40]} Rc1+ {[%emt 0:00:27]} 65. Kb5 {[%emt 0:00:13]} Rb1+ {[%emt 0:00:18]} 66. Kc6 {[%emt 0:00:04]} Rc1+ {[%emt 0:00:04]} 67. Kd7 {[%emt 0:00:06] Weighted Error Value: White=0.09 (flawless) /Black=0.27 (precise) .  Mistake:       	White=3     	Black=7      Inaccurate:     	White=4     	Black=2      OK:         	White=12    	Black=18     Best:        	White=2     	Black=3      Strong:       	White=5     	Black=2} 1-0

[Event "African Individual Chess-ch Open 2024"]
[Site "Accra"]
[Date "2024.03.17"]
[Round "6.2"]
[White "Silva, David"]
[Black "Mwali, Chitumbo"]
[Result "1/2-1/2"]
[ECO "C55"]
[WhiteElo "2358"]
[BlackElo "2340"]
[Annotator "TA"]
[PlyCount "82"]
[EventDate "2024.03.13"]
[EventCountry "GHA"]
[SourceTitle "playchess.com"]
[Source "ChessBase"]
[SourceQuality "1"]
[TimeControl "5400+30"]

{[%evp 12,82,12,6,32,25,30,33,33,28,65,31,41,37,25,3,4,15,8,10,2,0,18,12,18,6,8,5,45,27,22,20,35,10,13,0,64,-33,40,5,12,-3,-2,-20,0,0,0,-24,-25,-66,-33,-24,0,-2,-12,-24,-6,-15,-16,-20,-14,-37,-40,-44,0,0,13,0,0,0,0,0,0]} 1. e4 {[%emt 0:01:21]} e5 {[%emt 0:00:26]} 2. Nf3 {[%emt 0:00:09]} Nc6 {[%emt 0:00:08]} 3. Bc4 {[%emt 0:00:05]} Nf6 {[%emt 0:00:11]} 4. d3 {[%emt 0:00:09]} Be7 {[%emt 0:00:48]} 5. Nc3 {[%emt 0:00:08]} O-O {[%emt 0:02:34]} 6. O-O {[%emt 0:00:22]} d6 {[%emt 0:01:53]} 7. a3 {[%emt 0:00:58]} h6 {[%emt 0:04:03]} 8. h3 {[%emt 0:03:14]} a6 {[%emt 0:02:47]} 9. Re1 {[%emt 0:00:46]} b5 {[%emt 0:04:14] Weiß steht etwas besser.} 10. Ba2 {[%emt 0:00:27]} Nb8 {[%emt 0:01:39]} 11. Ne2 {[%emt 0:04:26] Weiß steht aktiver.} Re8 {[%emt 0:05:59]} 12. Ng3 {[%emt 0:01:23]} Bf8 {[%emt 0:00:12]} 13. Nh4 {[%emt 0:00:04]} Be6 {[%emt 0:00:33]} 14. Nhf5 {[%emt 0:01:29]} Bxa2 {[%emt 0:01:09]} 15. Rxa2 {[%emt 0:00:10]} Kh7 {[%emt 0:00:17]} 16. f4 {[%emt 0:13:26]} g6 {[%emt 0:13:47]} 17. fxe5 $1 {[%emt 0:01:01]} dxe5 {[%emt 0:00:05]} 18. Ne3 {[%emt 0:00:29]} Bg7 {[%emt 0:02:11]} 19. Rf1 {[%emt 0:00:19]} Rf8 {[%emt 0:06:39]} 20. b4 {[%emt 0:07:35]} a5 {[%emt 0:07:20]} 21. bxa5 {[%emt 0:03:20]} Rxa5 {[%emt 0:00:35]} 22. Bd2 {[%emt 0:00:26][%cal Bc1d2,Bd2b4,Bb4c5,Bc5e3][%mdl 32]} Ra6 {[%emt 0:00:13]} 23. Qb1 {[%emt 0:01:03]} c6 {[%emt 0:01:42]} ({Günstiger ist} 23... Qd7 $11) 24. Qb3 {[%emt 0:03:54]} (24. a4 $14) 24... Ra7 {[%emt 0:08:25]} (24... Nbd7 $15) 25. Bb4 {[%emt 0:01:46][%cal Ob4c5] und nun wäre Bc5! stark für Weiss.} Re8 {[%emt 0:00:20]} 26. Bc5 {[%emt 0:10:27]} Rb7 {[%emt 0:03:58]} 27. Nd1 {[%emt 0:04:24]} Nbd7 {[%emt 0:04:40]} 28. Be3 {[%emt 0:00:26]} Qe7 {[%emt 0:00:14]} 29. a4 {[%emt 0:01:41]} Nc5 {[%emt 0:03:11]} 30. Qc3 {[%emt 0:00:09]} Nxa4 {[%emt 0:09:25]} 31. Qxc6 {[%emt 0:00:38]} Rbb8 {[%emt 0:00:30]} 32. Qa6 {[%emt 0:03:55]} Nd7 {[%emt 0:02:02]} 33. Qc6 {[%emt 0:02:13]} Rec8 {[%emt 0:02:34]} 34. Qd5 {[%emt 0:00:32]} Kg8 {[%emt 0:00:08]} 35. Ne2 {[%emt 0:01:13]} Ndc5 {[%emt 0:02:36]} 36. Ra1 {[%emt 0:02:31]} Ne6 {[%emt 0:00:53]} 37. Qa2 {[%emt 0:02:43]} Qc7 {[%emt 0:05:11]} (37... h5 $15) 38. c4 $11 {[%emt 0:01:50] Die Stellung ist ausgeglichen.} Nac5 {[%emt 0:04:57]} 39. cxb5 {[%emt 0:01:12]} Rxb5 {[%emt 0:00:48]} 40. Ndc3 {[%emt 0:01:22]} Rbb8 {[%emt 0:00:14]} 41. Nd5 {[%emt 0:00:22]} Qd8 {[%emt 0:00:07] Gewichteter Fehlerwert: Weiß=0.12 (sehr präzise) /Schwarz=0.15 (sehr präzise) .  Fehler:       	Weiß=1     	Schwarz=3     Ungenau:       	Weiß=3     	Schwarz=3     OK:         	Weiß=16    	Schwarz=11    Stark:        	Weiß=1     	---} 1/2-1/2

[Event "African Individual Chess-ch Open 2024"]
[Site "Accra"]
[Date "2024.03.17"]
[Round "6.3"]
[White "Ortega Amarelle, Mariano"]
[Black "Aikhoje, Odion"]
[Result "1/2-1/2"]
[ECO "B38"]
[WhiteElo "2482"]
[BlackElo "2215"]
[Annotator "TA"]
[PlyCount "140"]
[EventDate "2024.03.13"]
[EventCountry "GHA"]
[SourceTitle "playchess.com"]
[Source "ChessBase"]
[SourceQuality "1"]
[TimeControl "5400+30"]

{[%evp 18,140,60,49,59,37,60,63,101,89,90,85,125,133,158,132,137,120,231,223,214,155,241,236,395,249,265,263,257,264,224,255,262,244,261,256,235,188,252,239,245,66,230,63,61,69,65,0,75,66,287,287,275,284,294,292,293,300,356,354,331,339,363,361,380,380,380,380,369,365,410,320,414,380,356,380,372,93,99,75,68,0,0,0,8,8,8,8,8,8,8,8,8,8,8,8,8,8,8,8,8,8,8,0,0,0,0,0,0,0,0,0,8,8,8,8,8,8,8,8,8,8,8,8,8]} 1. c4 {[%emt 0:03:06]} Nf6 {[%emt 0:09:50]} 2. Nc3 {[%emt 0:01:48]} c5 {[%emt 0:02:13]} 3. Nf3 {[%emt 0:00:31]} g6 {[%emt 0:00:43]} 4. e4 {[%emt 0:01:00]} Bg7 {[%emt 0:02:05]} 5. d4 {[%emt 0:00:10]} cxd4 {[%emt 0:05:18]} 6. Nxd4 {[%emt 0:00:07]} d6 {[%emt 0:01:08]} 7. Be2 {[%emt 0:00:12]} Nfd7 {[%emt 0:02:46][%cal Bf6d7,Bd7e5,Be5c6][%mdl 32]} 8. O-O {[%emt 0:09:20]} Nc6 {[%emt 0:01:13]} 9. Be3 {[%emt 0:00:54]} O-O {[%emt 0:00:42]} 10. Rc1 {[%emt 0:05:22]} Nxd4 {[%emt 0:03:51]} 11. Bxd4 {[%emt 0:00:12]} Bxd4 {[%emt 0:00:10]} 12. Qxd4 {[%emt 0:00:11]} Ne5 {[%emt 0:00:05] White is slightly better.} 13. Rfd1 {[%emt 0:33:09]} Nc6 {[%emt 0:11:47]} 14. Qe3 {[%emt 0:00:18] White has more active pieces. The black rooks are passive.} f5 {[%emt 0:05:51]} 15. exf5 {[%emt 0:09:08]} Rxf5 {[%emt 0:00:25]} 16. Bd3 {[%emt 0:07:15]} Re5 {[%emt 0:01:13]} 17. Be4 $36 {[%emt 0:02:53][%mdl 2048] Black is under strong pressure.} Qf8 {[%emt 0:04:21]} (17... Qb6 $16) 18. f4 $18 {[%emt 0:02:43]} Rh5 {[%emt 0:01:17]} 19. Bd5+ {[%emt 0:03:59]} Kg7 {[%emt 0:02:08]} (19... Kh8 $16 20. Rd2 Rf5) 20. Ne4 {[%emt 0:01:04]} e5 $2 {[%emt 0:07:13]} (20... Kh8 21. b4 Bd7) 21. Bxc6 {[%emt 0:05:48]} bxc6 {[%emt 0:00:29]} 22. Rxd6 {[%emt 0:00:44]} Qxf4 {[%emt 0:01:00]} 23. Qxf4 {[%emt 0:02:42]} exf4 {[%emt 0:00:11]} 24. Rxc6 {[%emt 0:00:27]} Re5 {[%emt 0:04:29]} 25. Rc7+ {[%emt 0:00:50]} Kh6 {[%emt 0:01:02]} 26. Nd6 {[%emt 0:02:48]} Be6 {[%emt 0:00:22]} 27. Kf2 {[%emt 0:00:28] Prevents Re2+} a5 {[%emt 0:01:50]} (27... g5 $142 28. Re7 Kg6) 28. Re7 {[%emt 0:01:50]} Kg5 {[%emt 0:02:56]} 29. Re1 $2 {[%emt 0:01:57]} (29. Rxh7 $18 {b3 is the strong threat.} a4 30. Rd1) 29... Kf6 $2 {[%emt 0:01:26]} (29... Rxe1 $14 30. Kxe1 Kf6 31. Rxh7 Ke5 32. Nf7+ Kf6) 30. Rxh7 $2 {[%emt 0:01:37]} ({Only move:} 30. Rxe5 $1 $18 Kxe5 31. Ne8) 30... Rxe1 $14 {[%emt 0:01:04]} 31. Kxe1 $18 {[%emt 0:00:03][%mdl 4096] Endgame. KRB-KRN} Ke5 {[%emt 0:00:09] Prevents Ne4} 32. Nf7+ {[%emt 0:02:50]} (32. Nb5 $1 $14 Bxc4 33. Nc3) 32... Kd4 {[%emt 0:01:39]} (32... Kf6 $1 $11 {remains equal.} 33. Nd6 Ke5) 33. b3 {[%emt 0:00:36] Kd2 would now be deadly.} Bf5 $2 {[%emt 0:01:22]} (33... a4 $1 $14) 34. Nd6 {[%emt 0:00:48]} Bb1 {[%emt 0:00:30][%cal Od4c5] [#]} 35. Nb5+ $1 {[%emt 0:00:16]} Kc5 {[%emt 0:01:09]} 36. Nc3 {[%emt 0:00:09]} Bf5 {[%emt 0:00:22]} 37. Rb7 {[%emt 0:00:34]} Rh8 {[%emt 0:01:07]} 38. Rb5+ {[%emt 0:00:50]} Kd4 {[%emt 0:00:32]} 39. Kd2 {[%emt 0:00:08]} Be6 {[%emt 0:00:52] Wards off Rd5+} 40. h3 {[%emt 0:00:09]} (40. Rxa5 Rxh2 41. Ne2+ Ke4) 40... a4 {[%emt 0:02:05]} 41. Nxa4 {[%emt 0:00:00]} (41. bxa4 Kxc4 42. Ne2 f3 $16) 41... f3 {[%emt 0:00:00]} 42. gxf3 {[%emt 0:00:00]} Rxh3 {[%emt 0:00:00]} 43. Nc3 {[%emt 0:00:00][%cal Rc3e2]} Rxf3 {[%emt 0:00:00]} 44. Ne2+ {[%emt 0:00:00]} Ke4 {[%emt 0:00:00]} 45. Rg5 {[%emt 0:00:00]} Rd3+ {[%emt 0:00:00]} 46. Kc2 {[%emt 0:00:00] And now Nc3+ would win.} Re3 {[%emt 0:00:00]} 47. Ng3+ {[%emt 0:00:00]} (47. Nc3+ $18 Kf4 48. Rg1 (48. Rxg6 Bf5+ 49. Kb2 Bxg6 $14)) 47... Kf4 $16 {[%emt 0:00:00]} 48. Rxg6 {[%emt 0:00:00][%cal Oc2d2] Black must now prevent Kd2!} Bg4 {[%emt 0:00:00] [#]} 49. Rxg4+ {[%emt 0:00:00]} Kxg4 $14 {[%emt 0:00:00] KR-KN. The position is equal.} 50. Nf1 {[%emt 0:00:00]} Re2+ {[%emt 0:00:00]} 51. Nd2 {[%emt 0:00:00]} Kf4 $1 {[%emt 0:00:00]} 52. Kd3 {[%emt 0:00:00]} Re3+ {[%emt 0:00:00]} 53. Kd4 {[%emt 0:00:00]} Re2 {[%emt 0:00:00]} 54. Nb1 {[%emt 0:00:02]} Rxa2 {[%emt 0:00:00]} 55. b4 {[%emt 0:00:45]} Kf5 {[%emt 0:00:00]} 56. Nc3 {[%emt 0:00:55]} Rd2+ {[%emt 0:00:00]} 57. Kc5 {[%emt 0:00:21]} Ke6 {[%emt 0:00:00]} 58. Nd5 {[%emt 0:02:20]} Kd7 {[%emt 0:00:00]} 59. b5 {[%emt 0:00:08]} Rh2 {[%emt 0:00:00]} 60. b6 {[%emt 0:02:21]} Rh1 {[%emt 0:00:00]} 61. Kb5 {[%emt 0:00:51]} Kd6 {[%emt 0:00:00]} 62. Nc3 {[%emt 0:02:45]} Rh5+ {[%emt 0:00:11]} 63. Nd5 {[%emt 0:00:59] aiming for b7.} Rh1 {[%emt 0:00:24]} 64. Nb4 {[%emt 0:00:09]} Rh5+ {[%emt 0:00:23]} 65. Ka6 {[%emt 0:01:04] Intending b7 and mate.} Kc5 {[%emt 0:01:01][%csl LRb4,LRc4]} 66. b7 {[%emt 0:00:07]} Rh6+ {[%emt 0:00:49]} 67. Ka5 {[%emt 0:01:19]} Rb6 {[%emt 0:02:01]} 68. Na6+ {[%emt 0:00:34]} Kc6 $1 {[%emt 0:00:14]} 69. b8=Q {[%emt 0:00:18]} Rxb8 {[%emt 0:00:28]} 70. Nxb8+ {[%emt 0:00:06]} Kc5 {[%emt 0:00:05] White really could win this.   Weighted Error Value: White=0.37/Black=0.31.  Loses game:     	---       	Black=2      Missed win:     	White=3     	---        Mistake:       	White=2     	Black=5      Inaccurate:     	White=1     	Black=2      OK:         	White=29    	Black=24     Best:        	White=4     	Black=10     Strong:       	White=1     	Black=2} 1/2-1/2

[Event "African Individual Chess-ch Open 2024"]
[Site "Accra"]
[Date "2024.03.17"]
[Round "6.4"]
[White "Abdulraheem Abdulrahman Akinto"]
[Black "Rakotomaharo, Fy Antenaina"]
[Result "1/2-1/2"]
[ECO "E55"]
[WhiteElo "2229"]
[BlackElo "2454"]
[Annotator "TA"]
[PlyCount "120"]
[EventDate "2024.03.13"]
[EventCountry "GHA"]
[SourceTitle "playchess.com"]
[Source "ChessBase"]
[SourceQuality "1"]
[TimeControl "5400+30"]

{[%evp 22,120,20,23,32,29,24,26,22,28,14,26,20,30,62,42,28,30,35,29,36,44,29,22,35,0,4,0,0,0,4,11,5,0,0,0,0,0,0,0,0,-3,-5,-4,-2,-83,0,0,0,0,0,0,0,0,0,0,0,0,0,0,0,0,0,0,0,0,0,0,0,0,0,0,0,0,0,0,0,0,0,0,0,0,0,0,0,0,0,0,0,0,0,0,0,0,0,-8,-8,-8,-8,-8,-8]} 1. Nf3 {[%emt 0:00:03]} d5 {[%emt 0:03:04]} 2. d4 {[%emt 0:00:10]} Nf6 {[%emt 0:00:06]} 3. c4 {[%emt 0:00:14]} e6 {[%emt 0:00:06]} 4. Nc3 {[%emt 0:00:18]} Bb4 {[%emt 0:00:33]} 5. e3 {[%emt 0:00:36]} O-O {[%emt 0:00:35]} 6. Bd3 {[%emt 0:00:11]} dxc4 {[%emt 0:04:21]} 7. Bxc4 {[%emt 0:00:14]} c5 {[%emt 0:00:03]} 8. O-O {[%emt 0:02:08]} cxd4 {[%emt 0:00:10]} 9. exd4 {[%emt 0:00:34]} b6 {[%emt 0:00:41]} 10. Qe2 {[%emt 0:00:42]} Bb7 {[%emt 0:00:56]} 11. Rd1 {[%emt 0:00:38]} Nbd7 {[%emt 0:03:54]} 12. d5 {[%emt 0:04:28]} exd5 {[%emt 0:02:36]} 13. Nxd5 {[%emt 0:02:36]} Re8 {[%emt 0:00:22]} 14. Qc2 {[%emt 0:14:21]} Nxd5 {[%emt 0:18:56] White has an edge.} 15. Bxd5 {[%emt 0:01:34]} Bxd5 {[%emt 0:00:05]} 16. Rxd5 {[%emt 0:00:22] [#] Strongly threatening Bg5.} Qe7 {[%emt 0:01:06][%cal Oe7e1] ( -> ...Qe1+!)} 17. Bg5 {[%emt 0:05:48]} f6 {[%emt 0:00:41]} 18. Bf4 {[%emt 0:05:22] a3 would now be deadly. White is more active.} Nf8 {[%emt 0:01:14]} 19. a3 {[%emt 0:03:44]} Bc5 {[%emt 0:01:48]} 20. b4 {[%emt 0:01:18]} Qf7 {[%emt 0:00:14]} 21. Rad1 {[%emt 0:00:34]} Be7 {[%emt 0:00:02]} 22. Qc6 {[%emt 0:02:26]} a5 {[%emt 0:04:26]} 23. bxa5 {[%emt 0:05:02]} ({But not} 23. Qxb6 axb4 24. a4 (24. axb4 $2 {loses.} Qxd5 25. Rc1 Rec8 $19) 24... Rxa4 $17) 23... bxa5 {[%emt 0:01:12]} 24. Qa4 {[%emt 0:01:02]} Red8 {[%emt 0:05:27]} 25. Rxd8 {[%emt 0:01:45]} (25. Rxa5 $2 {perishes.} Rxa5 26. Qc2 Rxd1+ (26... Rxa3 $2 27. Rf1 $19) 27. Qxd1 Rxa3 $19) 25... Rxd8 {[%emt 0:00:04]} 26. Rxd8 {[%emt 0:00:33]} Bxd8 {[%emt 0:00:02]} 27. Bd2 {[%emt 0:05:51]} Qd5 {[%emt 0:00:29]} 28. Qd4 {[%emt 0:01:34]} Qxd4 {[%emt 0:01:25]} 29. Nxd4 $11 {[%emt 0:00:04][%mdl 4096] Endgame. KBN-KBN} Bb6 {[%emt 0:00:03]} 30. Nc6 {[%emt 0:07:01]} a4 $1 {[%emt 0:00:09]} 31. Ne7+ {[%emt 0:07:41]} Kf7 {[%emt 0:00:37]} 32. Nd5 {[%emt 0:00:07]} Bd4 {[%emt 0:01:25]} 33. Be3 {[%emt 0:03:33] [#]} (33. Bc3 $11 {remains equal.} Bc5 34. Ba5) 33... Bxe3 {[%emt 0:00:34]} (33... Ke6 $1 $17 {[%cal Re6d5]} 34. Nf4+ Ke5) 34. fxe3 $17 {[%emt 0:03:52] KN-KN. The position is equal.} Nd7 {[%emt 0:00:14]} 35. Kf2 {[%emt 0:00:39]} Ke6 {[%emt 0:00:08]} 36. Nc3 {[%emt 0:01:15]} Nc5 {[%emt 0:00:45]} 37. Ke2 {[%emt 0:01:45]} Ke5 {[%emt 0:01:12]} 38. Kf3 {[%emt 0:01:14]} h5 {[%emt 0:00:16]} 39. g3 {[%emt 0:08:37]} g5 {[%emt 0:01:54]} 40. h3 {[%emt 0:01:03]} f5 {[%emt 0:00:08]} 41. Kg2 {[%emt 0:06:16]} g4 {[%emt 0:02:05]} 42. hxg4 {[%emt 0:00:53]} hxg4 {[%emt 0:01:09]} 43. Kh2 {[%emt 0:01:13]} Ke6 {[%emt 0:33:56]} 44. Kg2 {[%emt 0:00:12]} Kd6 {[%emt 0:00:03]} 45. Kf1 {[%emt 0:02:33]} Kd7 {[%emt 0:01:25]} 46. Ke2 {[%emt 0:00:21]} Kc6 {[%emt 0:00:13]} 47. Kd2 {[%emt 0:00:00]} Kd6 {[%emt 0:00:00]} 48. Ke2 {[%emt 0:00:00]} Ke5 {[%emt 0:00:00]} 49. Kf1 {[%emt 0:00:00]} Nb3 {[%emt 0:00:00]} 50. Ke2 {[%emt 0:00:00]} Nc5 {[%emt 0:00:00]} 51. Kf1 {[%emt 0:00:00]} Ne4 {[%emt 0:00:00]} 52. Nxa4 {[%emt 0:00:00]} Nxg3+ {[%emt 0:00:00]} 53. Kg2 {[%emt 0:00:00]} Ne4 {[%emt 0:00:00]} 54. Nb2 {[%emt 0:00:00]} Ng5 {[%emt 0:00:00]} 55. a4 {[%emt 0:00:00]} Ke4 {[%emt 0:00:00]} 56. Nd1 {[%emt 0:00:00]} Ne6 {[%emt 0:00:00]} 57. a5 {[%emt 0:00:00]} Nc5 {[%emt 0:00:00]} 58. Nf2+ {[%emt 0:00:00]} Kxe3 {[%emt 0:00:00]} 59. Nxg4+ {[%emt 0:00:00]} fxg4 {[%emt 0:00:00]} 60. Kg3 {[%emt 0:00:00]} Kd4 {[%emt 0:00:00] Weighted Error Value: White=0.07 (flawless) /Black=0.05 (flawless) .  Mistake:       	White=1     	Black=1      Inaccurate:     	White=1     	Black=1      OK:         	White=27    	Black=14     Strong:       	---       	Black=1} 1/2-1/2